lending/lending_fUSD_20250408
["ID","MTS","AMOUNT","RATE_DAILY","PERIOD"]
[357537822,1744131154800,-878.89,0.00031506,2]
[357537823,1744131154809,-939.58,0.00031506,2]
[357537824,1744131154819,-735.03,0.00031506,2]
[357537825,1744131154829,-524.35,0.00031506,2]
[357537826,1744131154838,-545.41383298,0.00031506,2]
[357537827,1744131154849,-500.0,0.00031506,2]
[357537828,1744131154858,-1127.76,0.00031506,2]
[357537829,1744131154867,-500.0,0.00031506,2]
[357537830,1744131154877,-1017.57,0.00031506,2]
[357537831,1744131154886,-6178.64,0.00031506,2]
[357537832,1744131154895,-396.28,0.00031506,2]
[357537833,1744131154904,-513.55,0.00031506,2]
[357537834,1744131154913,-500.0,0.00031506,2]
[357537835,1744131154923,-950.17,0.00031506,2]
[357537836,1744131154932,-1089.76,0.00031506,2]
[357537837,1744131154941,-549.65,0.00031506,2]
[357537838,1744131154950,-578.6,0.00031506,2]
[357537839,1744131154959,-841.6,0.00031506,2]
[357537840,1744131154968,-1940.65,0.00031506,2]
[357537841,1744131154977,-671.05,0.00031506,2]
[357537842,1744131154986,-3839.98,0.00031506,2]
[357537843,1744131154995,-181.92860526,0.00031506,2]
[357537844,1744131155005,-500.0,0.00031506,2]
[357537845,1744131155014,-558.9,0.00031506,2]
[357537846,1744131155023,-1739.52,0.00031506,2]
[357537847,1744131155033,-500.0,0.00031506,2]
[357537848,1744131155042,-500.0,0.00031506,2]
[357537849,1744131155051,-853.97,0.00031506,2]
[357537850,1744131155060,-727.58,0.00031506,2]
[357537851,1744131155069,-734.69,0.00031506,2]
[357537852,1744131155078,-1008.41,0.00031506,2]
[357537853,1744131155088,-990.1,0.00031506,2]
[357537854,1744131155099,-500.0,0.00031506,2]
[357537855,1744131155110,-737.46,0.00031506,2]
[357537856,1744131155119,-880.15,0.00031506,2]
[357537857,1744131155128,-872.33,0.00031506,2]
[357537858,1744131155138,-500.0,0.00031506,2]
[357537859,1744131155147,-825.98,0.00031506,2]
[357537860,1744131155156,-506.13,0.00031506,2]
[357537861,1744131155166,-2261.1,0.00031506,2]
[357537862,1744131155175,-2351.91,0.00031506,2]
[357537863,1744131155185,-1830.5,0.00031506,2]
[357537864,1744131155195,-500.0,0.00031506,2]
[357537865,1744131155204,-727.88,0.00031506,2]
[357537866,1744131155213,-1859.52,0.00031506,2]
[357537867,1744131155222,-665.51,0.00031506,2]
[357537868,1744131155231,-986.07,0.00031506,2]
[357537869,1744131155240,-593.3,0.00031506,2]
[357537870,1744131155249,-500.0,0.00031506,2]
[357537871,1744131155259,-1483.68,0.00031506,2]
[357537872,1744131155269,-4169.04,0.00031506,2]
[357537873,1744131155278,-1258.57,0.00031506,2]
[357537874,1744131155288,-524.58,0.00031506,2]
[357537875,1744131155297,-500.0,0.00031506,2]
[357537876,1744131155307,-646.63,0.00031506,2]
[357537877,1744131155316,-808.53,0.00031506,2]
[357537878,1744131155325,-1146.51,0.00031506,2]
[357537879,1744131155335,-535.91,0.00031506,2]
[357537880,1744131155346,-24279.06,0.00031506,2]
[357537881,1744131155356,-500.0,0.00031506,2]
[357537882,1744131155366,-500.0,0.00031506,2]
[357537883,1744131155375,-500.0,0.00031506,2]
[357537884,1744131155384,-632.96,0.00031506,2]
[357537885,1744131155394,-1842.22,0.00031506,2]
[357537886,1744131155404,-892.34,0.00031506,2]
[357537887,1744131155414,-575.39,0.00031506,2]
[357537888,1744131155424,-921.97,0.00031506,2]
[357537889,1744131155434,-735.43,0.00031506,2]
[357537890,1744131155444,-1216.92,0.00031506,2]
[357537891,1744131155453,-589.43,0.00031506,2]
[357537892,1744131155462,-500.0,0.00031506,2]
[357537893,1744131155472,-500.0,0.00031506,2]
[357537894,1744131155481,-475.95841812,0.00031506,2]
[357537895,1744131155491,-646.32,0.00031506,2]
[357537896,1744131155501,-1299.3,0.00031506,2]
[357537897,1744131155511,-616.22,0.00031506,2]
[357537898,1744131155520,-4391.56,0.00031506,2]
[357537899,1744131155529,-735.03,0.00031506,2]
[357537900,1744131155539,-573.44,0.00031506,2]
[357537901,1744131155550,-830.9,0.00031506,2]
[357537902,1744131155560,-542.44,0.00031506,2]
[357537903,1744131155570,-1398.27,0.00031506,2]
[357537904,1744131155580,-198.59394323,0.00031506,2]
[357537905,1744131155591,-763.62,0.00031506,2]
[357537906,1744131155601,-745.57,0.00031506,2]
[357537907,1744131155610,-500.0,0.00031506,2]
[357537908,1744131155619,-1043.21,0.00031506,2]
[357537909,1744131155629,-812.8,0.00031506,2]
[357537910,1744131155639,-500.0,0.00031506,2]
[357537911,1744131155649,-836.32,0.00031506,2]
[357537912,1744131155658,-813.0,0.00031506,2]
[357537913,1744131155668,-500.0,0.00031506,2]
[357537914,1744131155679,-500.0,0.00031506,2]
[357537915,1744131155688,-684.15,0.00031506,2]
[357537916,1744131155698,-1564.46,0.00031506,2]
[357537917,1744131155707,-984.76,0.00031506,2]
[357537918,1744131155717,-615.97,0.00031506,2]
[357537919,1744131155727,-630.49,0.00031506,2]
[357537920,1744131155736,-151.0,0.00031506,7]
[357537921,1744131155746,-780.29,0.00031506,2]
[357537922,1744131155756,-794.86,0.00031506,2]
[357537923,1744131155765,-918.03,0.00031506,2]
[357537924,1744131155775,-6319.24,0.00031506,2]
[357537925,1744131155785,-929.59,0.00031506,2]
[357537926,1744131155795,-1679.19,0.00031506,2]
[357537927,1744131155805,-500.0,0.00031506,2]
[357537928,1744131155815,-660.39,0.00031506,2]
[357537929,1744131155825,-500.0,0.00031506,2]
[357537930,1744131155834,-639.27,0.00031506,2]
[357537931,1744131155848,-563.60023029,0.00031506,2]
[357537932,1744131155858,-751.14,0.00031506,2]
[357537933,1744131155868,-725.42,0.00031506,2]
[357537934,1744131155878,-85906.97727009,0.00031506,2]
[357537935,1744131155889,-85906.97727009,0.00031506,2]
[357537936,1744131155899,-85906.97727009,0.00031506,2]
[357537937,1744131155909,-85906.97727009,0.00031506,2]
[357537938,1744131155919,-169.21,0.00031507,2]
[357537939,1744131155929,-150.0,0.00031649,2]
[357537940,1744131155939,-445.0,0.00031691,2]
[357537941,1744131155948,-150.0,0.00031691,2]
[357537942,1744131155958,-348.14,0.00031691,2]
[357537943,1744131155967,-445.0,0.00031691,2]
[357537944,1744131155976,-348.14,0.00031691,2]
[357537945,1744131155985,-150.0,0.00031691,2]
[357537946,1744131155995,-445.0,0.00031691,2]
[357537947,1744131156005,-150.0,0.00031691,2]
[357537948,1744131156015,-348.14,0.00031691,2]
[357537949,1744131156025,-445.0,0.00031691,2]
[357537950,1744131156035,-150.0,0.00031691,2]
[357537951,1744131156044,-348.14,0.00031691,2]
[357537952,1744131156054,-445.0,0.00031691,2]
[357537953,1744131156064,-150.0,0.00031691,2]
[357537954,1744131156073,-348.14,0.00031691,2]
[357537955,1744131156084,-348.14,0.00031691,2]
[357537956,1744131156097,-445.0,0.00031691,2]
[357537957,1744131156110,-348.14,0.00031691,2]
[357537958,1744131156119,-348.14,0.00031691,2]
[357537959,1744131156129,-348.14,0.00031691,2]
[357537960,1744131156141,-348.14,0.00031691,2]
[357537961,1744131156151,-348.14,0.00031691,2]
[357537962,1744131156160,-348.14,0.00031691,2]
[357537963,1744131156170,-348.14,0.00031691,2]
[357537964,1744131156180,-500.0,0.0003178,2]
[357537965,1744131156189,-500.0,0.0003178,2]
[357537966,1744131156200,-521.99,0.0003178,2]
[357537967,1744131156210,-500.0,0.0003178,2]
[357537968,1744131156220,-1012.34,0.0003178,2]
[357537969,1744131156229,-500.0,0.0003178,2]
[357537970,1744131156239,-1008.75,0.0003178,2]
[357537971,1744131156249,-572.69,0.0003178,2]
[357537972,1744131156259,-938.36,0.0003178,2]
[357537973,1744131156269,-500.0,0.0003178,2]
[357537974,1744131156279,-799.85,0.0003178,2]
[357537975,1744131156288,-500.0,0.0003178,2]
[357537976,1744131156298,-500.0,0.0003178,2]
[357537977,1744131156308,-500.0,0.0003178,2]
[357537978,1744131156317,-500.0,0.0003178,2]
[357537979,1744131156327,-500.0,0.0003178,2]
[357537980,1744131156337,-936.4,0.0003178,2]
[357537981,1744131156348,-500.0,0.0003178,2]
[357537982,1744131156358,-736.0,0.0003178,2]
[357537983,1744131156368,-500.0,0.0003178,2]
[357537984,1744131156377,-500.0,0.0003178,2]
[357537985,1744131156387,-500.0,0.0003178,2]
[357537986,1744131156396,-550.93,0.0003178,2]
[357537987,1744131156406,-621.25,0.0003178,2]
[357537988,1744131156416,-500.0,0.0003178,2]
[357537989,1744131156425,-500.0,0.0003178,2]
[357537990,1744131156435,-500.0,0.0003178,2]
[357537991,1744131156445,-1509.4,0.0003178,2]
[357537992,1744131156455,-768.18,0.0003178,2]
[357537993,1744131156465,-500.0,0.0003178,2]
[357537994,1744131156475,-734.29,0.0003178,2]
[357537995,1744131156485,-707.17,0.0003178,2]
[357537996,1744131156495,-509.41,0.0003178,2]
[357537997,1744131156505,-500.0,0.0003178,2]
[357537998,1744131156516,-500.0,0.0003178,2]
[357537999,1744131156527,-1220.84,0.0003178,2]
[357538000,1744131156537,-560.61682025,0.0003178,2]
[357538001,1744131156549,-315.26834698,0.0003178,2]
[357538002,1744131156560,-500.0,0.0003178,2]
[357538003,1744131156571,-500.0,0.0003178,2]
[357538004,1744131156582,-500.0,0.0003178,2]
[357538005,1744131156596,-545.03,0.0003178,2]
[357538006,1744131156610,-500.0,0.0003178,2]
[357538007,1744131156621,-500.0,0.0003178,2]
[357538008,1744131156631,-500.0,0.0003178,2]
[357538009,1744131156642,-1019.54,0.0003178,2]
[357538010,1744131156653,-1644.68,0.0003178,2]
[357538011,1744131156663,-538.21,0.0003178,2]
[357538012,1744131156674,-734.05,0.0003178,2]
[357538013,1744131156685,-241.25443585,0.0003178,2]
[357538014,1744131156695,-1425.74,0.0003178,2]
[357538015,1744131156706,-1187.81,0.0003178,2]
[357538016,1744131156717,-379.06679227,0.0003178,2]
[357538017,1744131156727,-500.0,0.0003178,2]
[357538018,1744131156737,-500.0,0.0003178,2]
[357538019,1744131156747,-500.0,0.0003178,2]
[357538020,1744131156757,-1273.1,0.0003178,2]
[357538021,1744131156766,-1048.09,0.0003178,2]
[357538022,1744131156776,-531.84,0.0003178,2]
[357538023,1744131156786,-500.0,0.0003178,2]
[357538024,1744131156796,-686.22,0.0003178,2]
[357538025,1744131156806,-643.82,0.0003178,2]
[357538026,1744131156817,-589.26,0.0003178,2]
[357538027,1744131156827,-530.29,0.0003178,2]
[357538028,1744131156838,-1739.87,0.0003178,2]
[357538029,1744131156853,-913.6,0.0003178,2]
[357538030,1744131156863,-500.0,0.0003178,2]
[357538031,1744131156874,-541.35,0.0003178,2]
[357538032,1744131156884,-500.0,0.0003178,2]
[357538033,1744131156894,-524.83,0.0003178,2]
[357538034,1744131156904,-853.97,0.0003178,2]
[357538035,1744131156914,-591.27101684,0.0003178,2]
[357538036,1744131156924,-500.0,0.0003178,2]
[357538037,1744131156934,-1206.08,0.0003178,2]
[357538038,1744131156944,-500.0,0.0003178,2]
[357538039,1744131156955,-839.17,0.0003178,2]
[357538040,1744131156966,-500.0,0.0003178,2]
[357538041,1744131156976,-1079.35,0.0003178,2]
[357538042,1744131156986,-646.6,0.0003178,2]
[357538043,1744131156997,-500.0,0.0003178,2]
[357538044,1744131157007,-1392.68,0.0003178,2]
[357538045,1744131157018,-1013.5,0.0003178,2]
[357538046,1744131157029,-1047.48,0.0003178,2]
[357538047,1744131157039,-500.0,0.0003178,2]
[357538048,1744131157048,-1138.94,0.0003178,2]
[357538049,1744131157058,-460.2953461,0.0003178,2]
[357538050,1744131157068,-328.32,0.0003178,2]
[357538051,1744131157079,-571.65,0.0003178,2]
[357538052,1744131157090,-218.5996351,0.0003178,2]
[357538053,1744131157104,-985.93,0.0003178,2]
[357538054,1744131157113,-500.0,0.0003178,2]
[357538055,1744131157123,-500.0,0.0003178,2]
[357538056,1744131157134,-500.0,0.0003178,2]
[357538057,1744131157144,-500.0,0.0003178,2]
[357538058,1744131157154,-893.75,0.0003178,2]
[357538059,1744131157163,-882.81,0.0003178,2]
[357538060,1744131157174,-635.65,0.0003178,2]
[357538061,1744131157184,-500.0,0.0003178,2]
[357538062,1744131157195,-554.86,0.0003178,2]
[357538063,1744131157205,-500.0,0.0003178,2]
[357538064,1744131157215,-1285.07,0.0003178,2]
[357538065,1744131157225,-500.0,0.0003178,2]
[357538066,1744131157235,-815.01,0.0003178,2]
[357538067,1744131157245,-2250.35,0.0003178,2]
[357538068,1744131157255,-828.56,0.0003178,2]
[357538069,1744131157266,-553.89,0.0003178,2]
[357538070,1744131157277,-554.97,0.0003178,2]
[357538071,1744131157288,-571.07,0.0003178,2]
[357538072,1744131157298,-620.01155899,0.0003178,2]
[357538073,1744131157309,-500.0,0.0003178,2]
[357538074,1744131157320,-635.52,0.0003178,2]
[357538075,1744131157331,-521.74312611,0.0003178,2]
[357538076,1744131157342,-729.33,0.0003178,2]
[357538077,1744131157357,-500.0,0.0003178,2]
[357538078,1744131157367,-1155.37,0.0003178,2]
[357538079,1744131157378,-500.0,0.0003178,2]
[357538080,1744131157389,-683.43,0.0003178,2]
[357538081,1744131157399,-659.52,0.0003178,2]
[357538082,1744131157410,-959.29,0.0003178,2]
[357538083,1744131157420,-1042.58,0.0003178,2]
[357538084,1744131157430,-500.0,0.0003178,2]
[357538085,1744131157440,-500.0,0.0003178,2]
[357538086,1744131157451,-502.74,0.0003178,2]
[357538087,1744131157461,-500.0,0.0003178,2]
[357538088,1744131157471,-500.0,0.0003178,2]
[357538089,1744131157481,-500.0,0.0003178,2]
[357538090,1744131157493,-500.0,0.0003178,2]
[357538091,1744131157503,-651.5,0.0003178,2]
[357538092,1744131157513,-543.44342356,0.0003178,2]
[357538093,1744131157524,-594.23,0.0003178,2]
[357538094,1744131157534,-594.32,0.0003178,2]
[357538095,1744131157545,-764.58,0.0003178,2]
[357538096,1744131157555,-554.84,0.0003178,2]
[357538097,1744131157566,-1066.53,0.0003178,2]
[357538098,1744131157577,-784.39,0.0003178,2]
[357538099,1744131157588,-508.06,0.0003178,2]
[357538100,1744131157601,-513.92,0.0003178,2]
[357538101,1744131157613,-1465.9,0.0003178,2]
[357538102,1744131157623,-568.34,0.0003178,2]
[357538103,1744131157634,-583.31,0.0003178,2]
[357538104,1744131157644,-627.5,0.0003178,2]
[357538105,1744131157655,-423.33626097,0.0003178,2]
[357538106,1744131157665,-500.0,0.0003178,2]
[357538107,1744131157675,-500.0,0.0003178,2]
[357538108,1744131157685,-500.0,0.0003178,2]
[357538109,1744131157695,-570.96,0.0003178,2]
[357538110,1744131157705,-500.0,0.0003178,2]
[357538111,1744131157715,-702.55,0.0003178,2]
[357538112,1744131157725,-500.0,0.0003178,2]
[357538113,1744131157735,-500.0,0.0003178,2]
[357538114,1744131157745,-627.68,0.0003178,2]
[357538115,1744131157755,-600.21,0.0003178,2]
[357538116,1744131157765,-717.93,0.0003178,2]
[357538117,1744131157775,-525.64,0.0003178,2]
[357538118,1744131157785,-683.46,0.0003178,2]
[357538119,1744131157795,-500.0,0.0003178,2]
[357538120,1744131157805,-605.89156661,0.0003178,2]
[357538121,1744131157815,-537.7,0.0003178,2]
[357538122,1744131157825,-500.0,0.0003178,2]
[357538123,1744131157835,-1354.7,0.0003178,2]
[357538124,1744131157845,-748.01,0.0003178,2]
[357538125,1744131157855,-500.0,0.0003178,2]
[357538126,1744131157865,-1010.61,0.0003178,2]
[357538127,1744131157875,-564.61,0.0003178,2]
[357538128,1744131157884,-500.0,0.0003178,2]
[357538129,1744131157894,-500.0,0.0003178,2]
[357538130,1744131157904,-790.51,0.0003178,2]
[357538131,1744131157914,-500.0,0.0003178,2]
[357538132,1744131157924,-1476.66,0.0003178,2]
[357538133,1744131157934,-500.0,0.0003178,2]
[357538134,1744131157943,-655.26,0.0003178,2]
[357538135,1744131157953,-500.0,0.0003178,2]
[357538136,1744131157963,-737.15,0.0003178,2]
[357538137,1744131157973,-539.63,0.0003178,2]
[357538138,1744131157982,-500.0,0.0003178,2]
[357538139,1744131157992,-500.0,0.0003178,2]
[357538140,1744131158002,-677.2,0.0003178,2]
[357538141,1744131158012,-703.81,0.0003178,2]
[357538142,1744131158022,-959.99,0.0003178,2]
[357538143,1744131158031,-704.21,0.0003178,2]
[357538144,1744131158041,-641.96,0.0003178,2]
[357538145,1744131158051,-505.48,0.0003178,2]
[357538146,1744131158061,-932.66,0.0003178,2]
[357538147,1744131158070,-812.56,0.0003178,2]
[357538148,1744131158081,-1465.75,0.0003178,2]
[357538149,1744131158091,-580.15,0.0003178,2]
[357538150,1744131158106,-888.6,0.0003178,2]
[357538151,1744131158116,-545.23,0.0003178,2]
[357538152,1744131158126,-889.0,0.0003178,2]
[357538153,1744131158138,-2260.02,0.0003178,2]
[357538154,1744131158148,-794.37,0.0003178,2]
[357538155,1744131158158,-500.0,0.0003178,2]
[357538156,1744131158168,-613.35,0.0003178,2]
[357538157,1744131158179,-567.81,0.0003178,2]
[357538158,1744131158189,-500.0,0.0003178,2]
[357538159,1744131158199,-808.98,0.0003178,2]
[357538160,1744131158209,-845.46,0.0003178,2]
[357538161,1744131158218,-593.3,0.0003178,2]
[357538162,1744131158228,-500.0,0.0003178,2]
[357538163,1744131158238,-581.16,0.0003178,2]
[357538164,1744131158248,-500.0,0.0003178,2]
[357538165,1744131158257,-878.06,0.0003178,2]
[357538166,1744131158267,-500.0,0.0003178,2]
[357538167,1744131158277,-1056.72,0.0003178,2]
[357538168,1744131158287,-500.0,0.0003178,2]
[357538169,1744131158296,-1037.85,0.0003178,2]
[357538170,1744131158307,-624.4,0.0003178,2]
[357538171,1744131158317,-500.0,0.0003178,2]
[357538172,1744131158627,-547.36,0.0003178,2]
[357538173,1744131158638,-500.0,0.0003178,2]
[357538174,1744131158648,-1221.73,0.0003178,2]
[357538175,1744131158657,-541.77,0.0003178,2]
[357538176,1744131158667,-1049.21,0.0003178,2]
[357538177,1744131158676,-833.03,0.0003178,2]
[357538178,1744131158686,-500.0,0.0003178,2]
[357538179,1744131158695,-947.72,0.0003178,2]
[357538180,1744131158705,-2154.22,0.0003178,2]
[357538181,1744131158715,-915.59,0.0003178,2]
[357538182,1744131158725,-500.0,0.0003178,2]
[357538183,1744131158735,-715.09,0.0003178,2]
[357538184,1744131158745,-681.07,0.0003178,2]
[357538185,1744131158754,-806.29,0.0003178,2]
[357538186,1744131158764,-500.0,0.0003178,2]
[357538187,1744131158773,-596.17,0.0003178,2]
[357538188,1744131158784,-500.0,0.0003178,2]
[357538189,1744131158793,-623.11,0.0003178,2]
[357538190,1744131158803,-643.21,0.0003178,2]
[357538191,1744131158813,-895.87,0.0003178,2]
[357538192,1744131158822,-591.63,0.0003178,2]
[357538193,1744131158833,-840.88,0.0003178,2]
[357538194,1744131158843,-500.0,0.0003178,2]
[357538195,1744131158854,-915.65,0.0003178,2]
[357538196,1744131158863,-2601.54,0.0003178,2]
[357538197,1744131158873,-6189.26,0.0003178,2]
[357538198,1744131158883,-1470.66,0.0003178,2]
[357538199,1744131158893,-500.0,0.0003178,2]
[357538200,1744131158903,-1161.33,0.0003178,2]
[357538201,1744131158913,-557.06,0.0003178,2]
[357538202,1744131158923,-500.0,0.0003178,2]
[357538203,1744131158933,-748.03,0.0003178,2]
[357538204,1744131158943,-1784.68,0.0003178,2]
[357538205,1744131158953,-736.96,0.0003178,2]
[357538206,1744131158963,-500.0,0.0003178,2]
[357538207,1744131158972,-802.54,0.0003178,2]
[357538208,1744131158982,-500.0,0.0003178,2]
[357538209,1744131158992,-528.16,0.0003178,2]
[357538210,1744131159001,-1759.78,0.0003178,2]
[357538211,1744131159011,-880.64,0.0003178,2]
[357538212,1744131159021,-878.89,0.0003178,2]
[357538213,1744131159031,-939.58,0.0003178,2]
[357538214,1744131159041,-735.03,0.0003178,2]
[357538215,1744131159051,-524.35,0.0003178,2]
[357538216,1744131159061,-500.0,0.0003178,2]
[357538217,1744131159071,-1127.76,0.0003178,2]
[357538218,1744131159081,-500.0,0.0003178,2]
[357538219,1744131159091,-1017.57,0.0003178,2]
[357538220,1744131159102,-6178.64,0.0003178,2]
[357538221,1744131159114,-396.28,0.0003178,2]
[357538222,1744131159124,-386.65394529,0.0003178,2]
[357538223,1744131159134,-950.17,0.0003178,2]
[357538224,1744131159143,-513.55,0.0003178,2]
[357538225,1744131159155,-1089.76,0.0003178,2]
[357538226,1744131159164,-549.65,0.0003178,2]
[357538227,1744131159174,-578.6,0.0003178,2]
[357538228,1744131159186,-841.6,0.0003178,2]
[357538229,1744131159196,-1940.65,0.0003178,2]
[357538230,1744131159206,-3839.98,0.0003178,2]
[357538231,1744131159216,-671.05,0.0003178,2]
[357538232,1744131159226,-500.0,0.0003178,2]
[357538233,1744131159235,-558.9,0.0003178,2]
[357538234,1744131159245,-1739.52,0.0003178,2]
[357538235,1744131159255,-500.0,0.0003178,2]
[357538236,1744131159264,-500.0,0.0003178,2]
[357538237,1744131159275,-853.97,0.0003178,2]
[357538238,1744131159284,-727.58,0.0003178,2]
[357538239,1744131159294,-734.69,0.0003178,2]
[357538240,1744131159304,-1008.41,0.0003178,2]
[357538241,1744131159313,-990.1,0.0003178,2]
[357538242,1744131159323,-633.10821682,0.0003178,2]
[357538243,1744131159333,-737.46,0.0003178,2]
[357538244,1744131159342,-880.15,0.0003178,2]
[357538245,1744131159352,-872.33,0.0003178,2]
[357538246,1744131159361,-825.98,0.0003178,2]
[357538247,1744131159370,-500.0,0.0003178,2]
[357538248,1744131159382,-506.13,0.0003178,2]
[357538249,1744131159391,-2261.1,0.0003178,2]
[357538250,1744131159401,-151.0,0.0003178,7]
[357538251,1744131159410,-2351.91,0.0003178,2]
[357538252,1744131159419,-1830.5,0.0003178,2]
[357538253,1744131159429,-500.0,0.0003178,2]
[357538254,1744131159438,-727.88,0.0003178,2]
[357538255,1744131159448,-219.638522,0.0003178,7]
[357538256,1744131159457,-1859.52,0.0003178,2]
[357538257,1744131159466,-665.51,0.0003178,2]
[357538258,1744131159475,-986.07,0.0003178,2]
[357538259,1744131159484,-593.3,0.0003178,2]
[357538260,1744131159493,-500.0,0.0003178,2]
[357538261,1744131159503,-1483.68,0.0003178,2]
[357538262,1744131159512,-4169.04,0.0003178,2]
[357538263,1744131159522,-1258.57,0.0003178,2]
[357538264,1744131159532,-524.58,0.0003178,2]
[357538265,1744131159542,-269.29006731,0.0003178,2]
[357538266,1744131159553,-646.63,0.0003178,2]
[357538267,1744131159563,-1146.51,0.0003178,2]
[357538268,1744131159572,-808.53,0.0003178,2]
[357538269,1744131159582,-535.91,0.0003178,2]
[357538270,1744131159592,-151.0,0.0003178,7]
[357538271,1744131159605,-24279.06,0.0003178,2]
[357538272,1744131159614,-151.0,0.0003178,7]
[357538273,1744131159624,-500.0,0.0003178,2]
[357538274,1744131159633,-500.0,0.0003178,2]
[357538275,1744131159643,-500.0,0.0003178,2]
[357538276,1744131159652,-372.707341,0.0003178,7]
[357538277,1744131159662,-632.96,0.0003178,2]
[357538278,1744131159672,-1842.22,0.0003178,2]
[357538279,1744131159681,-372.707341,0.0003178,7]
[357538280,1744131159691,-892.34,0.0003178,2]
[357538281,1744131159701,-575.39,0.0003178,2]
[357538282,1744131159711,-735.43,0.0003178,2]
[357538283,1744131159720,-921.97,0.0003178,2]
[357538284,1744131159730,-1216.92,0.0003178,2]
[357538285,1744131159740,-589.43,0.0003178,2]
[357538286,1744131159749,-500.0,0.0003178,2]
[357538287,1744131159759,-500.0,0.0003178,2]
[357538288,1744131159768,-646.32,0.0003178,2]
[357538289,1744131159778,-1299.3,0.0003178,2]
[357538290,1744131159788,-616.22,0.0003178,2]
[357538291,1744131159797,-4391.56,0.0003178,2]
[357538292,1744131159807,-735.03,0.0003178,2]
[357538293,1744131159817,-573.44,0.0003178,2]
[357538294,1744131159827,-830.9,0.0003178,2]
[357538295,1744131159838,-542.44,0.0003178,2]
[357538296,1744131159847,-1398.27,0.0003178,2]
[357538297,1744131159859,-763.62,0.0003178,2]
[357538298,1744131159868,-500.0,0.0003178,2]
[357538299,1744131159878,-1043.21,0.0003178,2]
[357538300,1744131159887,-745.57,0.0003178,2]
[357538301,1744131159897,-500.0,0.0003178,2]
[357538302,1744131159907,-812.8,0.0003178,2]
[357538303,1744131159917,-836.32,0.0003178,2]
[357538304,1744131159926,-813.0,0.0003178,2]
[357538305,1744131159936,-500.0,0.0003178,2]
[357538306,1744131159946,-500.0,0.0003178,2]
[357538307,1744131159956,-684.15,0.0003178,2]
[357538308,1744131159965,-1564.46,0.0003178,2]
[357538309,1744131159975,-984.76,0.0003178,2]
[357538310,1744131159985,-615.97,0.0003178,2]
[357538311,1744131159995,-630.49,0.0003178,2]
[357538312,1744131160004,-780.29,0.0003178,2]
[357538313,1744131160014,-794.86,0.0003178,2]
[357538314,1744131160023,-918.03,0.0003178,2]
[357538315,1744131160032,-6319.24,0.0003178,2]
[357538316,1744131160042,-929.59,0.0003178,2]
[357538317,1744131160052,-1679.19,0.0003178,2]
[357538318,1744131160062,-500.0,0.0003178,2]
[357538319,1744131160071,-660.39,0.0003178,2]
[357538320,1744131160080,-500.0,0.0003178,2]
[357538321,1744131160090,-639.27,0.0003178,2]